[Event "41st Zalakaros Festival 2022"]
[Site "Zalakaros"]
[Date "2022.06.10"]
[Round "6.7"]
[White "Kiss, Mate Jozsef"]
[Black "Ianov, Viktor"]
[Result "1/2-1/2"]
[ECO "B07"]
[WhiteElo "2030"]
[BlackElo "2279"]
[Annotator "TA"]
[PlyCount "51"]
[EventDate "2022.06.05"]
[EventType "swiss"]
[EventCountry "HUN"]
[SourceTitle "playchess.com"]
[Source "ChessBase"]
[SourceQuality "1"]
[TimeControl "40/5400+30:1800+30"]

{[%evp 9,51,54,68,63,56,61,50,53,74,52,77,72,65,65,102,100,97,91,105,79,113,102,102,110,100,99,104,117,110,105,151,89,160,148,156,104,171,120,197,191,168,15,237,239]} 1. e4 {[%emt 0:00:38]} d6 {[%emt 0:00:37]} 2. d4 {[%emt 0:00:08]} Nf6 {[%emt 0:00:08]} 3. Nc3 {[%emt 0:00:13]} c6 {[%emt 0:00:07]} 4. f4 {[%emt 0:00:34]} Qb6 {[%emt 0:00:10]} 5. Nf3 {[%emt 0:00:28]} Bg4 {[%emt 0:00:09][%cal Oe7e5]} 6. Be2 {[%emt 0:00:17] B07: Pirc Defence: Miscellaneous Systems.} Bxf3 {[%emt 0:00:09]} 7. Bxf3 {[%emt 0:00:05]} e5 {[%emt 0:00:06]} 8. Ne2 {[%emt 0:00:25] White is slightly better.} Nbd7 {[%emt 0:00:11]} 9. c3 {[%emt 0:00:38]} Be7 {[%emt 0:00:11]} 10. O-O {[%emt 0:00:33]} O-O {[%emt 0:00:37]} 11. Kh1 {[%emt 0:00:47] [#]} c5 $146 {[%emt 0:02:09]} ({Predecessor:} 11... Rfe8 12. a4 a5 13. g4 Nf8 14. g5 N6d7 15. f5 Rad8 16. Rg1 Kh8 17. Qc2 d5 18. exd5 {1-0 (40) Jobava,B (2588)-Pakleza,Z (2489) Chess.com INT 2021}) 12. g4 {[%emt 0:09:31][%cal Bg2g4,Bg4g5][%mdl 32] Strongly threatening dxe5.} Rfd8 {[%emt 0:02:30]} 13. g5 {[%emt 0:05:51]} Ne8 {[%emt 0:00:10]} 14. b3 {[%emt 0:12:50]} Nc7 {[%emt 0:02:21]} 15. fxe5 {[%emt 0:07:32]} dxe5 {[%emt 0:00:19]} 16. d5 {[%emt 0:00:25]} c4 {[%emt 0:02:16]} 17. Ng3 {[%emt 0:03:14]} g6 {[%emt 0:02:33] [#]} 18. Be2 $1 {[%emt 0:01:36]} cxb3 {[%emt 0:01:53]} 19. axb3 {[%emt 0:00:27][%cal Ba2b3,Bb3b4][%mdl 32]} Nc5 {[%emt 0:06:37]} (19... Ne8 $142) 20. Bc4 {[%emt 0:10:02]} (20. Bg4 $142) 20... Qd6 {[%emt 0:01:15]} ({Black should play} 20... a5) 21. b4 $16 {[%emt 0:07:11]} ({But not} 21. Qf3 a5 $16) 21... Nd7 {[%emt 0:01:00]} 22. Be3 {[%emt 0:03:56] White is more active.} (22. h4 $142) 22... Rf8 {[%emt 0:02:30]} (22... b6 $16) 23. Qg4 {[%emt 0:05:37]} (23. Be2 $18) 23... a6 {[%emt 0:00:36]} (23... a5 $16 {was worth a try.}) 24. h4 $18 {[%emt 0:05:05]} Nb5 {[%emt 0:01:19] [#]} 25. Bd2 {[%emt 0:08:49]} (25. h5 $1 $18 {[%cal Rh5g6]}) 25... Qc7 $2 {[%emt 0:01:22]} (25... Nxc3 $1 $11 26. Bd3 (26. Bxc3 Rac8 $15) 26... Nb5) 26. Be2 {[%emt 0:03:02] Weighted Error Value: White=0.24 (precise) /Black=0.26 (precise)} 1/2-1/2

[Event "41st Zalakaros Festival 2022"]
[Site "Zalakaros"]
[Date "2022.06.10"]
[Round "6.8"]
[White "Bodrogi, Bendeguz"]
[Black "Pasztor, Ferenc"]
[Result "1/2-1/2"]
[ECO "A00"]
[WhiteElo "2198"]
[BlackElo "2195"]
[Annotator "TA"]
[PlyCount "99"]
[EventDate "2022.06.05"]
[EventType "swiss"]
[EventCountry "HUN"]
[SourceTitle "playchess.com"]
[Source "ChessBase"]
[SourceQuality "1"]
[TimeControl "40/5400+30:1800+30"]

{[%evp 10,99,42,41,42,27,42,34,41,0,38,-10,-13,-7,-12,-8,-9,-17,6,-7,-18,-15,-6,-12,-12,-22,0,-7,23,-4,23,26,27,29,22,0,0,0,39,0,55,21,66,37,53,32,46,-11,-17,-9,-21,-12,-14,-20,-11,-18,0,0,0,0,25,-7,0,0,0,0,0,0,0,0,0,0,0,0,0,0,0,0,0,0,0,0,0,0,0,0,0,0,0,0,0,0]} 1. g3 {[%emt 0:00:35]} e5 {[%emt 0:01:50]} 2. c4 {[%emt 0:00:07]} Nc6 {[%emt 0:00:55]} 3. Bg2 {[%emt 0:00:08]} d6 {[%emt 0:00:11]} 4. Nc3 {[%emt 0:00:10]} f5 {[%emt 0:00:20]} 5. e3 {[%emt 0:00:18]} Nf6 {[%emt 0:00:08]} 6. Nge2 {[%emt 0:00:08]} g6 {[%emt 0:00:18] A25: English Opening vs King's Indian with ...Nc6 but without early d3.} 7. d4 {[%emt 0:07:40]} e4 {[%emt 0:00:37]} 8. h4 {[%emt 0:01:16] [#]} d5 $146 {[%emt 0:04:40] White is slightly better.} ({Predecessor:} 8... Bg7 9. Qb3 Bd7 10. a3 a5 11. Qa2 a4 12. b4 axb3 13. Qxb3 Na5 14. Qa2 c5 {0-1 (38) Hartmann,T (2030)-Pohl,W (2174) Schwaebisch Gmuend 2010}) 9. Qb3 {[%emt 0:04:40][%cal Rc3d5]} Nb4 {[%emt 0:06:56] [#] And now ...dxc4 would win.} 10. Nxd5 {[%emt 0:13:53]} (10. O-O $14) 10... Nfxd5 {[%emt 0:01:53]} 11. cxd5 {[%emt 0:00:17]} Qxd5 {[%emt 0:01:05]} 12. Qxd5 {[%emt 0:00:36]} Nxd5 {[%emt 0:00:07]} 13. Bd2 {[%emt 0:00:39]} Nb4 {[%emt 0:02:30]} 14. Bxb4 {[%emt 0:01:19]} Bxb4+ {[%emt 0:00:03]} 15. Nc3 {[%emt 0:00:16][%cal Be2c3,Bc3a4,Ba4c5,Bc5b3,Bb3d2][%mdl 32]} Be6 {[%emt 0:01:55]} 16. a3 {[%emt 0:03:00]} Be7 {[%emt 0:00:34]} 17. h5 {[%emt 0:07:47]} Bf6 {[%emt 0:06:08]} 18. Rc1 {[%emt 0:20:35]} Kd7 {[%emt 0:02:55]} 19. Bf1 {[%emt 0:00:52][%cal Bg2f1,Bf1c4,Bc4a2][%mdl 32]} a6 {[%emt 0:07:25]} 20. Na4 {[%emt 0:05:11] Strongly threatening Nc5+.} Kd6 {[%emt 0:04:26]} 21. Nc5 {[%emt 0:00:30]} Bc8 {[%emt 0:00:26]} 22. Bc4 {[%emt 0:01:28]} b6 {[%emt 0:01:44]} 23. Nb3 {[%emt 0:00:13]} g5 {[%emt 0:05:26]} 24. Nd2 {[%emt 0:02:44][%cal Og3g4]} (24. g4 $5) 24... Bb7 {[%emt 0:03:03]} (24... c5 $11) 25. h6 {[%emt 0:16:17]} Rhd8 {[%emt 0:06:19]} 26. Ba2 {[%emt 0:01:34] White is more active.} Rac8 {[%emt 0:14:14]} 27. b4 $1 {[%emt 0:00:58]} Ke7 {[%emt 0:02:16][%cal Of6d4]} 28. Rc2 {[%emt 0:02:47] [#]} ({White should play} 28. Nc4 $14) 28... Bxd4 $1 $11 {[%emt 0:01:43]} 29. exd4 {[%emt 0:00:06]} e3 $1 {[%emt 0:00:11]} 30. O-O {[%emt 0:00:40]} exd2 {[%emt 0:02:47]} 31. Rxd2 {[%emt 0:00:04] aiming for Re2+.} Rd6 {[%emt 0:01:13]} 32. Re1+ {[%emt 0:00:06]} Kf6 {[%emt 0:01:07]} 33. Rde2 {[%emt 0:00:10][%cal Bd2e2,Be2e7,Be7g7][%mdl 32] Re6+ is the strong threat.} g4 {[%emt 0:01:49]} 34. Re7 {[%emt 0:00:36]} Kg6 {[%emt 0:12:23]} 35. Rg7+ {[%emt 0:01:03]} Kxh6 {[%emt 0:00:32] The position is equal.} 36. Ree7 {[%emt 0:00:05][%csl LRc7,LRh7]} Rh8 {[%emt 0:03:57]} 37. d5 {[%emt 0:00:46]} Bxd5 {[%emt 0:00:52]} 38. Bxd5 {[%emt 0:00:04]} Rxd5 {[%emt 0:00:06]} 39. Rxc7 {[%emt 0:00:04][%mdl 4096] Endgame KRR-KRR} a5 {[%emt 0:01:15]} 40. Rge7 {[%emt 0:00:00]} axb4 {[%emt 0:00:00]} 41. axb4 {[%emt 0:04:30]} Rb5 {[%emt 0:00:51]} 42. Rc6+ {[%emt 0:01:10]} Kh5 {[%emt 0:00:41]} 43. Rc4 {[%emt 0:00:08]} Kg5 {[%emt 0:01:19]} 44. Kg2 {[%emt 0:00:23]} Kf6 {[%emt 0:01:00]} 45. Rb7 {[%emt 0:04:37]} Re8 {[%emt 0:01:35]} 46. Rxh7 {[%emt 0:01:56]} Re4 {[%emt 0:00:11]} 47. Rc6+ {[%emt 0:01:01]} Ke5 {[%emt 0:00:47]} 48. Rhh6 {[%emt 0:00:13]} Rexb4 {[%emt 0:00:51]} 49. Rhe6+ {[%emt 0:00:06]} Kd4 {[%emt 0:00:34]} 50. Red6+ {[%emt 0:00:03] Weighted Error Value: White=0.11 (very precise) /Black=0.10 (very precise)} 1/2-1/2

[Event "41st Zalakaros Festival 2022"]
[Site "Zalakaros"]
[Date "2022.06.10"]
[Round "6.9"]
[White "Tulchynskyi, Feliks"]
[Black "Bernath, Bence"]
[Result "1/2-1/2"]
[ECO "A45"]
[WhiteElo "2068"]
[BlackElo "2202"]
[Annotator "TA"]
[PlyCount "66"]
[EventDate "2022.06.05"]
[EventType "swiss"]
[EventCountry "HUN"]
[SourceTitle "playchess.com"]
[Source "ChessBase"]
[SourceQuality "1"]
[TimeControl "40/5400+30:1800+30"]

{[%evp 23,66,39,39,35,49,33,38,33,58,54,55,52,104,66,136,123,170,112,85,63,83,45,75,66,85,60,95,71,71,15,15,22,190,184,183,166,152,97,104,105,118,93,91,92,93]} 1. d4 {[%emt 0:00:38]} Nf6 {[%emt 0:00:43]} 2. g3 {[%emt 0:00:25]} g6 {[%emt 0:00:18]} 3. Bg2 {[%emt 0:00:18]} Bg7 {[%emt 0:00:38]} 4. e4 {[%emt 0:00:18]} O-O {[%emt 0:00:26]} 5. Nc3 {[%emt 0:00:29]} d6 {[%emt 0:00:28]} 6. Nge2 {[%emt 0:00:14]} Nc6 {[%emt 0:00:54]} 7. O-O {[%emt 0:00:34]} e5 {[%emt 0:00:31]} 8. dxe5 {[%emt 0:00:23]} dxe5 {[%emt 0:00:19]} 9. Bg5 {[%emt 0:00:40]} Be6 {[%emt 0:00:27]} 10. Nd5 {[%emt 0:00:28]} Bxd5 {[%emt 0:00:27]} 11. exd5 {[%emt 0:00:09]} Ne7 {[%emt 0:00:28]} 12. c4 {[%emt 0:00:27]} h6 {[%emt 0:01:33]} 13. Bxf6 {[%emt 0:00:27] B07: Pirc Defence: Miscellaneous Systems.} Bxf6 {[%emt 0:00:06]} 14. c5 {[%emt 0:00:09]} Nf5 {[%emt 0:01:18]} 15. Rc1 {[%emt 0:07:30] [#] White is slightly better.} Qd7 $146 {[%emt 0:05:09]} ({Predecessor:} 15... Re8 16. Qd3 Rb8 17. Rfd1 Bg7 18. d6 cxd6 19. cxd6 Nd4 20. Nxd4 exd4 21. Qa3 Re6 22. Qxa7 Rxd6 23. Bxb7 Rb6 24. Qxb8 Qxb8 25. Rc8+ Qxc8 26. Bxc8 Rxb2 27. a4 {½-½ (27) Houser,P (2335)-Belov,I (2440) Karvina 1992}) 16. Qd3 {[%emt 0:06:36]} Rfd8 {[%emt 0:08:08]} 17. Rfd1 {[%emt 0:02:32][%cal Od5d6]} Bg7 {[%emt 0:03:37]} (17... Rab8 $14) 18. Qc4 {[%emt 0:23:16][%cal Od5d6]} Ne7 {[%emt 0:04:34]} (18... Rab8 $14) 19. Nc3 {[%emt 0:00:56]} a6 {[%emt 0:03:14]} (19... Nf5 $16 {keeps fighting.}) 20. b4 {[%emt 0:11:26]} (20. d6 $18 cxd6 21. Qb3 (21. Rxd6 Qc7 $16) (21. cxd6 Nf5 $11)) 20... Nf5 $16 {[%emt 0:04:54]} 21. Ne2 {[%emt 0:02:27][%cal Od5d6]} Rab8 {[%emt 0:02:59]} 22. Rc2 {[%emt 0:03:42]} Qe7 {[%emt 0:02:24]} 23. a4 {[%emt 0:03:15]} Bf8 {[%emt 0:02:58]} 24. Rdc1 {[%emt 0:01:41]} Qe8 {[%emt 0:01:44]} 25. b5 {[%emt 0:03:21]} axb5 {[%emt 0:00:11]} 26. Qxb5 {[%emt 0:00:09]} (26. axb5 $16 Rd7 27. Nc3) 26... Qxb5 $11 {[%emt 0:04:43]} 27. axb5 {[%emt 0:00:04][%cal Od5d6]} b6 $2 {[%emt 0:00:04] [#]} (27... h5 $11) 28. d6 $1 $18 {[%emt 0:01:35][%cal Bd5d6,Bd6d7][%mdl 32]} Rdc8 {[%emt 0:03:50]} 29. d7 {[%emt 0:06:29]} Rd8 {[%emt 0:00:19]} 30. cxb6 {[%emt 0:01:37] White is more active.} ({Better is} 30. c6) 30... cxb6 $16 {[%emt 0:00:17] White is better.} 31. Bc6 {[%emt 0:03:36]} Bc5 {[%emt 0:02:18]} 32. Rd1 {[%emt 0:04:45]} Nd4 {[%emt 0:02:26]} 33. Nxd4 {[%emt 0:01:05]} Bxd4 {[%emt 0:00:06] Weighted Error Value: White=0.22 (precise) /Black=0.32} 1/2-1/2

[Event "41st Zalakaros Festival 2022"]
[Site "Zalakaros"]
[Date "2022.06.10"]
[Round "6.10"]
[White "Pogany, Zsombor"]
[Black "Demeter, Dorina"]
[Result "1-0"]
[ECO "C92"]
[WhiteElo "2104"]
[BlackElo "2235"]
[Annotator "TA"]
[PlyCount "83"]
[EventDate "2022.06.05"]
[EventType "swiss"]
[EventCountry "HUN"]
[SourceTitle "playchess.com"]
[Source "ChessBase"]
[SourceQuality "1"]
[TimeControl "40/5400+30:1800+30"]

{[%evp 36,83,7,4,28,17,52,61,71,103,67,88,94,105,287,272,292,287,258,259,404,434,427,417,423,402,392,399,589,580,628,626,604,508,558,530,1003,1015,1003,989,954,936,1174,1130,1180,1123,29958,12850,5956,5812]} 1. e4 {[%emt 0:00:35]} e5 {[%emt 0:00:35]} 2. Nf3 {[%emt 0:00:10]} Nc6 {[%emt 0:00:05]} 3. Bb5 {[%emt 0:00:14]} a6 {[%emt 0:00:12]} 4. Ba4 {[%emt 0:00:18]} Nf6 {[%emt 0:00:06]} 5. O-O {[%emt 0:00:18]} Be7 {[%emt 0:00:13]} 6. Re1 {[%emt 0:00:20]} b5 {[%emt 0:00:12]} 7. Bb3 {[%emt 0:00:09]} d6 {[%emt 0:00:14]} 8. c3 {[%emt 0:00:27]} O-O {[%emt 0:00:18]} 9. h3 {[%emt 0:00:28]} Re8 {[%emt 0:00:49]} 10. d4 {[%emt 0:00:40]} Bb7 {[%emt 0:00:37]} 11. Nbd2 {[%emt 0:01:04]} Bf8 {[%emt 0:00:23]} 12. a4 {[%emt 0:00:57]} h6 {[%emt 0:02:05]} 13. Bc2 {[%emt 0:01:09]} exd4 {[%emt 0:03:27]} 14. cxd4 {[%emt 0:01:43]} Nb4 {[%emt 0:00:22]} 15. Bb1 {[%emt 0:00:39]} c5 {[%emt 0:01:46]} 16. d5 {[%emt 0:03:00]} Nd7 {[%emt 0:05:51]} 17. Ra3 {[%emt 0:02:37]} c4 {[%emt 0:07:12]} 18. axb5 {[%emt 0:01:25]} axb5 {[%emt 0:03:35]} 19. Nd4 {[%emt 0:00:33]} Qb6 {[%emt 0:08:20] C92: Closed Ruy Lopez: 9...Be6, Karpov and Flohr-Zaitsev Variations.} 20. Nf5 {[%emt 0:02:19][%cal Of5h6] Nxh6+! is the strong threat.} g6 {[%emt 0:03:39] [#]} 21. Nf1 $1 {[%emt 0:00:23]} Kh7 {[%emt 0:18:20] White is slightly better.} (21... Ne5 22. Nxh6+) 22. Qd2 {[%emt 0:24:21]} Rxa3 {[%emt 0:14:34]} 23. bxa3 {[%emt 0:00:14]} Nd3 {[%emt 0:03:55]} 24. Bxd3 {[%emt 0:02:11][%cal Bb1d3,Bd3c2,Bc2f5][%mdl 32] [#]} gxf5 $146 {[%emt 0:00:29] [#]} (24... cxd3 $16 25. Nxh6 Bxd5) ({Predecessor:} 24... cxd3 25. Nxh6 Bxd5 26. Qf4 f6 27. Qh4 g5 28. Qh5 Rxe4 29. Ng4+ Kg8 30. Qg6+ Kh8 31. Rxe4 Bxe4 32. Qxe4 Qc5 33. Bb2 {1-0 (33) Hallier,K (2069)-Breitenbaum,J (1998) corr 1997}) 25. Bc2 $18 {[%emt 0:03:27]} Nf6 {[%emt 0:07:38]} 26. Ng3 {[%emt 0:22:07]} Bc8 {[%emt 0:05:15]} 27. Bb2 {[%emt 0:03:27]} Bg7 {[%emt 0:01:37]} (27... Qd8 $142 28. Bc3 Kg8) 28. e5 {[%emt 0:02:08]} dxe5 {[%emt 0:00:49]} 29. Nxf5 {[%emt 0:01:08]} Bxf5 {[%emt 0:01:24]} 30. Bxf5+ {[%emt 0:00:08]} Kg8 {[%emt 0:00:25]} 31. d6 {[%emt 0:06:00][%cal Bd5d6,Bd6d7][%mdl 32]} Qd8 {[%emt 0:09:38]} (31... Rd8 $142 32. Bxe5 Ne8) 32. d7 {[%emt 0:04:47]} Re7 {[%emt 0:00:14]} 33. Rd1 {[%emt 0:00:39]} e4 {[%emt 0:02:00]} 34. Bc3 {[%emt 0:01:48][%cal Bb2c3,Bc3a5,Ba5d8][%mdl 32]} e3 {[%emt 0:00:39]} 35. fxe3 {[%emt 0:00:19]} Ne4 {[%emt 0:00:21]} 36. Ba5 {[%emt 0:03:18]} Nxd2 {[%emt 0:00:35]} 37. Bxd8 {[%emt 0:00:05] This bishop pair is nice.} Rxd7 {[%emt 0:00:34]} 38. Bxd7 {[%emt 0:00:06]} c3 {[%emt 0:00:10]} 39. Bxb5 {[%emt 0:00:53]} Nb3 {[%emt 0:00:48]} 40. Ba4 {[%emt 0:00:00]} c2 {[%emt 0:00:00]} 41. Bxb3 {[%emt 0:00:49]} cxd1=Q+ {[%emt 0:01:13]} 42. Bxd1 {[%emt 0:01:55] Black did not feel at home in the position after the opening.  Weighted Error Value: White=0.05 (flawless) /Black=0.85} 1-0

[Event "41st Zalakaros Festival 2022"]
[Site "Zalakaros"]
[Date "2022.06.11"]
[Round "7.1"]
[White "Csonka, Balazs"]
[Black "Horvath, Adam"]
[Result "1/2-1/2"]
[ECO "B48"]
[WhiteElo "2498"]
[BlackElo "2513"]
[Annotator "TA"]
[PlyCount "61"]
[EventDate "2022.06.05"]
[EventType "swiss"]
[EventCountry "HUN"]
[SourceTitle "playchess.com"]
[Source "ChessBase"]
[SourceQuality "1"]
[TimeControl "40/5400+30:1800+30"]

{[%evp 11,61,31,35,35,34,30,25,23,33,30,51,12,8,0,30,37,50,47,77,34,122,119,124,18,19,18,19,23,29,7,15,16,15,16,44,46,58,30,40,40,33,32,50,47,33,0,8,0,0,0,0,0]} 1. e4 {[%emt 0:00:37]} c5 {[%emt 0:00:43]} 2. Nf3 {[%emt 0:00:07]} e6 {[%emt 0:00:06]} 3. d4 {[%emt 0:00:07]} cxd4 {[%emt 0:00:04]} 4. Nxd4 {[%emt 0:00:05]} Nc6 {[%emt 0:00:07]} 5. Nc3 {[%emt 0:00:05]} Qc7 {[%emt 0:00:04]} 6. Be3 {[%emt 0:00:10]} a6 {[%emt 0:00:06]} 7. Qf3 {[%emt 0:00:07] 7.g4 is setting a new trend. B48: Sicilian: Taimanov: 5 Nc3 Qc7 6 Be3 a6 without Be2.} Nf6 {[%emt 0:00:43][%cal Of8a3]} 8. O-O-O {[%emt 0:00:09]} h5 {[%emt 0:00:22]} 9. Nxc6 {[%emt 0:00:37] White has an edge.} dxc6 {[%emt 0:00:05]} 10. h3 {[%emt 0:00:56]} b5 {[%emt 0:01:57]} 11. e5 {[%emt 0:00:41]} Nd5 {[%emt 0:00:16]} 12. Bf4 {[%emt 0:00:24]} Qa5 {[%emt 0:01:55]} 13. Bd3 {[%emt 0:04:59]} Be7 {[%emt 0:07:32] [#]} 14. g4 $146 {[%emt 0:08:09]} ({Predecessor:} 14. Nxd5 exd5 15. Kb1 Be6 16. Bd2 Qc7 17. Qe2 h4 18. f4 g6 19. Qf2 O-O-O 20. Be3 {½-½ (37) Santos Latasa,J (2536)-Shankland,S (2662) Sitges 2017}) 14... g6 {[%emt 0:30:41]} 15. Rhe1 {[%emt 0:26:33]} Nxc3 {[%emt 0:46:16]} (15... Bb7 $14) 16. Qxc6+ $16 {[%emt 0:03:18]} Kf8 {[%emt 0:00:02]} 17. Qxc3 {[%emt 0:10:39]} (17. Qxa8 $16 Nxd1 18. Rxd1 (18. Qxc8+ $2 Kg7 $19)) 17... Qxc3 $11 {[%emt 0:07:01]} (17... Bb4 $2 18. Qc6 Rb8 19. Bxg6 $18 (19. c3 Be7 $11)) 18. bxc3 {[%emt 0:02:03]} Bb7 {[%emt 0:00:02]} 19. Be4 {[%emt 0:18:51]} Ba3+ {[%emt 0:01:02]} 20. Kd2 {[%emt 0:07:17]} Bxe4 {[%emt 0:00:05]} 21. Rxe4 {[%emt 0:00:07]} hxg4 {[%emt 0:00:03]} 22. hxg4 {[%emt 0:00:08]} Rc8 {[%emt 0:00:45]} 23. Rb1 {[%emt 0:05:51]} Kg7 {[%emt 0:00:55]} 24. Rb3 {[%emt 0:03:49]} (24. c4 $5) 24... Rhd8+ {[%emt 0:00:59]} 25. Ke2 {[%emt 0:01:02]} Be7 {[%emt 0:00:06]} 26. a4 {[%emt 0:01:02]} Rd5 {[%emt 0:00:54]} 27. axb5 {[%emt 0:00:14]} axb5 {[%emt 0:00:04]} 28. Kf1 {[%emt 0:04:05]} (28. g5 $5 {[%cal Rf4e3]}) 28... Rdc5 {[%emt 0:00:59] The position is equal.} 29. Be3 {[%emt 0:01:55]} Rxc3 {[%emt 0:00:26]} 30. Rxb5 {[%emt 0:00:12]} Rxc2 {[%emt 0:00:19]} 31. Rb7 {[%emt 0:00:11] Weighted Error Value: White=0.15 (very precise) /Black=0.14 (very precise)} 1/2-1/2

[Event "41st Zalakaros Festival 2022"]
[Site "Zalakaros"]
[Date "2022.06.11"]
[Round "7.2"]
[White "Peczely, Sebastian Zsombor"]
[Black "Pranav Vijay"]
[Result "1-0"]
[ECO "C49"]
[WhiteElo "2313"]
[BlackElo "2265"]
[Annotator "TA"]
[PlyCount "120"]
[EventDate "2022.06.05"]
[EventType "swiss"]
[EventCountry "HUN"]
[SourceTitle "playchess.com"]
[Source "ChessBase"]
[SourceQuality "1"]
[TimeControl "40/5400+30:1800+30"]

{[%evp 23,120,46,50,30,28,25,24,11,30,-6,9,-37,-47,-50,-30,-70,-72,-80,-73,-60,-76,-68,-50,-68,-28,-38,-7,-6,-10,0,0,0,-7,-49,-37,-33,0,0,0,-49,0,0,0,0,0,0,45,39,38,40,38,38,72,31,71,38,17,31,183,178,209,209,600,609,575,574,550,512,700,904,952,920,939,909,990,992,952,937,1108,1088,973,1400,1243,1088,29970,29971,29970,29970,29973,29974,29974,29975,29975,29976,29976,29976,29978,29979,29978]} 1. e4 {[%emt 0:01:48]} e5 {[%emt 0:00:37]} 2. Nf3 {[%emt 0:00:07]} Nc6 {[%emt 0:00:06]} 3. Nc3 {[%emt 0:00:07]} Nf6 {[%emt 0:00:16]} 4. Bb5 {[%emt 0:00:06]} Bb4 {[%emt 0:00:58]} 5. O-O {[%emt 0:00:24]} O-O {[%emt 0:00:07]} 6. d3 {[%emt 0:00:02]} d6 {[%emt 0:00:29]} 7. Bg5 {[%emt 0:00:07]} Bxc3 {[%emt 0:00:55]} 8. bxc3 {[%emt 0:00:05]} Qe7 {[%emt 0:00:15]} 9. Re1 {[%emt 0:00:05]} Nd8 {[%emt 0:00:45]} 10. d4 {[%emt 0:01:28]} Ne6 {[%emt 0:01:45]} 11. Bc1 {[%emt 0:00:20]} c6 {[%emt 0:04:36]} 12. Bf1 {[%emt 0:00:43]} Rd8 {[%emt 0:02:34]} 13. g3 {[%emt 0:07:57] C49: Four Knights: 4 Bb5 Bb4.} Nf8 {[%emt 0:02:41]} 14. Bg2 {[%emt 0:04:01]} Ng6 {[%emt 0:00:39] [#]} 15. h3 $146 {[%emt 0:07:25] White has an edge.} ({Predecessor:} 15. a4 Bg4 16. h3 Bxf3 17. Qxf3 Nd7 18. h4 h6 19. Bh3 Qf6 20. Qd3 exd4 21. cxd4 {1-0 (29) Zaksaite,S (2287)-Kaspi,A (2435) Jerusalem 2017}) 15... h6 {[%emt 0:01:40]} 16. Nh2 {[%emt 0:09:26]} Qc7 {[%emt 0:11:17]} 17. f4 {[%emt 0:18:14]} (17. a4 $11 {might be stronger.}) 17... exf4 $15 {[%emt 0:00:37]} 18. gxf4 {[%emt 0:00:13]} d5 {[%emt 0:01:12]} 19. e5 {[%emt 0:05:46]} Ne4 {[%emt 0:00:22]} 20. Rxe4 {[%emt 0:00:43]} dxe4 {[%emt 0:00:29]} 21. Bxe4 {[%emt 0:00:34]} f5 {[%emt 0:01:51]} ({Don't play} 21... Bxh3 22. Qf3 Bd7 23. f5 $11) 22. Bd3 {[%emt 0:10:41]} Be6 {[%emt 0:00:21]} 23. Nf3 {[%emt 0:03:12]} Qf7 {[%emt 0:01:03]} 24. Qe2 {[%emt 0:02:55]} b6 {[%emt 0:04:12]} 25. Be3 {[%emt 0:04:19]} c5 {[%emt 0:01:00]} 26. dxc5 {[%emt 0:00:13]} bxc5 {[%emt 0:00:07]} 27. c4 {[%emt 0:00:10]} Rab8 {[%emt 0:00:52]} 28. a3 {[%emt 0:00:52]} Rb2 {[%emt 0:05:19]} 29. Kh2 {[%emt 0:04:02]} Rdb8 {[%emt 0:00:16]} 30. Nd2 {[%emt 0:00:31]} a5 {[%emt 0:21:25]} 31. Rg1 {[%emt 0:00:47]} (31. Rf1 $11) 31... a4 {[%emt 0:04:28]} (31... Ra2 $1 $15 {deserves consideration.}) 32. Qh5 {[%emt 0:01:33]} Nxe5 {[%emt 0:01:41]} 33. Qxf7+ {[%emt 0:01:13]} Nxf7 {[%emt 0:00:07]} 34. Bxc5 {[%emt 0:00:06]} Rd8 {[%emt 0:02:37] Prevents Bd4. Strongly threatening ...Rxd3.} 35. Bb4 {[%emt 0:03:38][%mdl 1024] White has compensation.} Nd6 {[%emt 0:05:02][%cal Od6e4]} 36. Bc3 $1 {[%emt 0:03:09][%csl LRb2,LRg7]} Rb7 {[%emt 0:00:01]} 37. Rg6 $36 {[%emt 0:02:23][%mdl 2048] White is more active.} Bc8 {[%emt 0:04:25]} 38. c5 {[%emt 0:02:43]} (38. Be5 $5 {[%cal Rg6d6]} Ne8 39. c5 $14) 38... Ne8 {[%emt 0:00:27]} 39. Ba5 {[%emt 0:02:28] Against Rc7. White is more active. This bishop pair is nice.} Rd4 {[%emt 0:01:22]} 40. Rc6 {[%emt 0:00:00]} Bd7 {[%emt 0:00:00] Loses the game.} (40... Rb8 $1 $14) 41. Ra6 $1 $18 {[%emt 0:06:18]} Bb5 {[%emt 0:07:10]} 42. Rb6 $1 {[%emt 0:11:36]} Rxb6 {[%emt 0:04:20]} (42... Bxd3 43. Rxb7 Be4) 43. cxb6 {[%emt 0:00:13] Hoping for b7.} Bc6 {[%emt 0:00:11] [#]} 44. Bb5 $1 {[%emt 0:00:26][%mdl 576] Deflection} Bb7 {[%emt 0:00:36]} (44... Ba8 45. Bxe8) 45. Bxe8 {[%emt 0:00:05]} Rxf4 {[%emt 0:00:05]} 46. c4 {[%emt 0:00:47][%cal Bc2c4,Bc4c5][%mdl 32]} Rf2+ {[%emt 0:01:27] [#]} 47. Kg1 $1 {[%emt 0:00:08]} ({Less strong is} 47. Kg3 Re2 48. Bh5 (48. Bxa4 Re3+ 49. Kf4 Rxa3 $16) 48... f4+ 49. Kxf4 g5+ 50. Kg4 Re3 $16) 47... Re2 {[%emt 0:00:03]} 48. Bb5 {[%emt 0:00:59]} Re1+ {[%emt 0:00:10]} 49. Kf2 {[%emt 0:00:14]} Rc1 {[%emt 0:00:02]} 50. Bb4 {[%emt 0:02:30]} Kf7 {[%emt 0:06:36]} 51. c5 {[%emt 0:00:44]} Ke6 {[%emt 0:00:01]} 52. Nc4 {[%emt 0:00:22]} Kd5 {[%emt 0:00:05] Inhibits c6.} 53. Na5 {[%emt 0:07:30]} Rxc5 {[%emt 0:00:38]} 54. Bxc5 {[%emt 0:00:05] White mates.} Kxc5 {[%emt 0:00:04]} 55. Nxb7+ {[%emt 0:00:28]} Kxb5 {[%emt 0:00:10]} 56. Nd6+ {[%emt 0:00:04]} Kxb6 {[%emt 0:00:04]} 57. Nxf5 {[%emt 0:00:05]} Kc5 {[%emt 0:00:02]} 58. Nxg7 {[%emt 0:00:25] KN-KPP} Kc4 {[%emt 0:00:01]} 59. Ne6 {[%emt 0:00:14]} Kb3 {[%emt 0:00:23]} 60. Nc5+ {[%emt 0:00:06]} Kxa3 {[%emt 0:00:02] Weighted Error Value: White=0.07 (flawless) /Black=0.54} 1-0